fUST/lending_fUST_20241102
["ID","MTS","AMOUNT","RATE_DAILY","PERIOD"]
[341181733,1730557516369,250.0,0.00020141,2]
[341181734,1730557529674,3000.0,0.00020141,2]
[341181769,1730557673931,524.2272559,0.00020128,2]
[341181778,1730557726082,205.286304,0.0001912,2]
[341181784,1730557747879,251.69276,0.00013973,2]
[341181789,1730557778831,912.738713,0.00020127,2]
[341181829,1730557832055,-178.9415171,0.00020202,2]
[341181830,1730557832066,-176.5584829,0.00020447,2]
[341181831,1730557832078,-75.1342771,0.00020447,2]
[341181832,1730557832088,-171.16007024,0.00020996,2]
[341181833,1730557832098,-626.033556,0.00021023,2]
[341181834,1730557832108,-949.33580526,0.00021069,2]
[341181835,1730557832124,-1324.62334134,0.00021069,2]
[341181836,1730557832134,-170.607717,0.00021097,2]
[341181837,1730557832145,-152.0,0.00021129,2]
[341181838,1730557832161,-1073.97,0.00021167,2]
[341181839,1730557832170,-287.95171228,0.00021175,2]
[341181840,1730557832182,-12.04828772,0.00021175,2]
[341181841,1730557832192,-300.0,0.00021175,2]
[341181842,1730557832202,-24900.0,0.00021176,2]
[341181843,1730557832212,-500.0,0.00021267,2]
[341181844,1730557832221,-500.81787276,0.00021267,2]
[341181845,1730557832231,-250.0,0.00021425,2]
[341181846,1730557832240,-250.0,0.00021484,2]
[341181847,1730557832250,-250.0,0.00021543,2]
[341181848,1730557832260,-250.0,0.00021601,2]
[341181849,1730557832270,-250.0,0.0002166,2]
[341181850,1730557832280,-626.033556,0.00021708,2]
[341181851,1730557832289,-250.0,0.00021719,2]
[341181852,1730557832299,-250.0,0.00021778,2]
[341181853,1730557832311,-250.0,0.00021836,2]
[341181854,1730557832320,-250.0,0.00021895,2]
[341181855,1730557832330,-483.18087953,0.00021917,2]
[341181856,1730557832339,-166.666666,0.00021918,2]
[341181857,1730557832349,-250.0,0.00021954,2]
[341181858,1730557832358,-250.0,0.00022013,2]
[341181859,1730557832368,-250.0,0.00022071,2]
[341181860,1730557832379,-250.0,0.0002213,2]
[341181861,1730557832391,-250.0,0.00022189,2]
[341181862,1730557832402,-744.56998715,0.00022248,2]
[341181863,1730557832412,-250.0,0.00022248,2]
[341181864,1730557832421,-1326.5044035,0.000223,2]
[341181865,1730557832431,-250.0,0.00022306,2]
[341181866,1730557832441,-250.0,0.00022365,2]
[341181867,1730557832451,-626.033556,0.00022393,2]
[341181868,1730557832461,-250.0,0.00022424,2]
[341181869,1730557832471,-166.666666,0.00022431,2]
[341181870,1730557832481,-250.0,0.00022483,2]
[341181871,1730557832491,-250.0,0.00022542,2]
[341181872,1730557832501,-166.666666,0.00022944,2]
[341181873,1730557832512,-241.77072217,0.00023,2]
[341181874,1730557832521,-308.57986518,0.00023,2]
[341181875,1730557832531,-420.0,0.0002303,2]
[341181876,1730557832540,-420.0,0.00023293,2]
[341181877,1730557832550,-166.666666,0.00023456,2]
[341181878,1730557832559,-194.30203911,0.00023577,2]
[341181879,1730557832569,-945.33547413,0.00023577,2]
[341181880,1730557832578,-189.858,0.00023604,2]
[341181881,1730557832589,-166.666666,0.00023969,2]
[341181882,1730557832599,-184.5725,0.00024071,2]
[341181883,1730557832608,-166.666666,0.00024482,2]
[341181884,1730557832618,-1307.1202297,0.000245,2]
[341181885,1730557832628,-660.0,0.00024658,2]
[341181886,1730557832638,-380.0,0.00024658,2]
[341181887,1730557832653,-599.40761041,0.00024672,2]
[341181888,1730557832662,-500.0,0.00024672,2]
[341181889,1730557832674,-1355.70351324,0.000249,2]
[341181890,1730557832684,-1355.70351321,0.00024923,2]
[341181891,1730557832693,-1355.70351321,0.00024945,2]
[341181892,1730557832703,-1355.70351321,0.00024968,2]
[341181893,1730557832712,-500.58048344,0.00024973,2]
[341181894,1730557832721,-500.0,0.00024973,2]
[341181895,1730557832731,-500.0,0.00024973,2]
[341181896,1730557832740,-500.0,0.00024973,2]
[341181897,1730557832750,-500.0,0.00024973,2]
[341181898,1730557832759,-500.0,0.00024973,2]
[341181899,1730557832769,-1355.70351321,0.0002499,2]
[341181900,1730557832779,-12165.45285353,0.00024999,2]
[341181901,1730557832788,-195.45124215,0.00024999,2]
[341181902,1730557832797,-177.47907363,0.00024999,2]
[341181903,1730557832807,-646.32693201,0.00024999,2]
[341181904,1730557832816,-10364.0,0.00025,2]
[341181905,1730557832825,-277.521395,0.00025,7]
[341181906,1730557832835,-151.0,0.00025,7]
[341181907,1730557832844,-158.006423,0.00025,7]
[341181908,1730557832854,-178.932426,0.00025,7]
[341181909,1730557832864,-151.0,0.00025,7]
[341181910,1730557832873,-151.0,0.00025,7]
[341181911,1730557832883,-151.0,0.00025,7]
[341181912,1730557832895,-153.446363,0.00025,7]
[341181913,1730557832905,-157.40817,0.00025,7]
[341181914,1730557832915,-157.378788,0.00025,7]
[341181915,1730557832925,-158.690823,0.00025,7]
[341181916,1730557832935,-287.207185,0.00025,7]
[341181917,1730557832945,-151.0,0.00025,7]
[341181918,1730557832954,-151.0,0.00025,7]
[341181919,1730557832964,-216.146003,0.00025,7]
[341181920,1730557832972,-216.146003,0.00025,7]
[341181921,1730557832982,-216.146003,0.00025,7]
[341181922,1730557832992,-216.146003,0.00025,7]
[341181923,1730557833002,-216.146003,0.00025,7]
[341181924,1730557833011,-216.146003,0.00025,7]
[341181925,1730557833021,-220.14949,0.00025,7]
[341181926,1730557833030,-157.793448,0.00025,7]
[341181927,1730557833040,-151.0,0.00025,7]
[341181928,1730557833050,-151.0,0.00025,7]
[341181929,1730557833060,-161.49107,0.00025,7]
[341181930,1730557833069,-249.823996,0.00025,7]
[341181931,1730557833080,-249.823996,0.00025,7]
[341181932,1730557833090,-151.0,0.00025,7]
[341181933,1730557833099,-259.606439,0.00025,7]
[341181934,1730557833109,-151.0,0.00025,7]
[341181935,1730557833120,-157.096661,0.00025,7]
[341181936,1730557833130,-151.0,0.00025,7]
[341181937,1730557833142,-151.0,0.00025,7]
[341181938,1730557833154,-151.0,0.00025,7]
[341181939,1730557833163,-231.325429,0.00025,7]
[341181940,1730557833173,-151.0,0.00025,7]
[341181941,1730557833183,-151.0,0.00025,7]
[341181942,1730557833192,-224.40907,0.00025,7]
[341181943,1730557833202,-302.96970909,0.00025,2]
[341181944,1730557833212,-151.0,0.00025,7]
[341181945,1730557833223,-151.0,0.00025,7]
[341181946,1730557833232,-951.691147,0.00025,7]
[341181947,1730557833242,-951.691147,0.00025,7]
[341181948,1730557833252,-151.0,0.00025,7]
[341181949,1730557833262,-220.135255,0.00025,7]
[341181950,1730557833272,-741.362036,0.00025,7]
[341181951,1730557833281,-741.362036,0.00025,7]
[341181952,1730557833291,-951.691147,0.00025,7]
[341181953,1730557833301,-951.691147,0.00025,7]
[341181954,1730557833316,-741.362036,0.00025,7]
[341181955,1730557833326,-741.362036,0.00025,7]
[341181956,1730557833336,-1815.482029,0.00025,7]
[341181957,1730557833347,-1815.482029,0.00025,7]
[341181958,1730557833357,-151.0,0.00025,7]
[341181959,1730557833367,-151.0,0.00025,7]
[341181960,1730557833377,-1815.482029,0.00025,7]
[341181961,1730557833387,-1815.482029,0.00025,7]
[341181962,1730557833401,-189.056353,0.00025,7]
[341181963,1730557833410,-189.056353,0.00025,7]
[341181964,1730557833420,-189.056353,0.00025,7]
[341181965,1730557833429,-189.056353,0.00025,7]
[341181966,1730557833438,-151.0,0.00025,7]
[341181967,1730557833448,-151.0,0.00025,7]
[341181968,1730557833458,-155.524267,0.00025,7]
[341181969,1730557833468,-151.0,0.00025,7]
[341181970,1730557833478,-151.0,0.00025,7]
[341181971,1730557833490,-151.0,0.00025,7]
[341181972,1730557833500,-151.0,0.00025,7]
[341181973,1730557833512,-151.0,0.00025,7]
[341181974,1730557833521,-300.581116,0.00025,7]
[341181975,1730557833531,-151.0,0.00025,7]
[341181976,1730557833540,-151.0,0.00025,7]
[341181977,1730557833551,-151.0,0.00025,7]
[341181978,1730557833562,-151.0,0.00025,3]
[341181979,1730557833572,-151.0,0.00025,3]
[341181980,1730557833582,-232.774433,0.00025,3]
[341181981,1730557833592,-154.658246,0.00025,7]
[341181982,1730557833602,-151.0,0.00025,7]
[341181983,1730557833612,-151.0,0.00025,7]
[341181984,1730557833621,-151.0,0.00025,7]
[341181985,1730557833631,-151.0,0.00025,7]
[341181986,1730557833642,-151.0,0.00025,7]
[341181987,1730557833651,-151.0,0.00025,7]
[341181988,1730557833660,-151.0,0.00025,7]
[341181989,1730557833670,-151.0,0.00025,7]
[341181990,1730557833681,-151.0,0.00025,7]
[341181991,1730557833691,-153.080539,0.00025,7]
[341181992,1730557833701,-151.0,0.00025,7]
[341181993,1730557833711,-167.033766,0.00025,7]
[341181994,1730557833722,-151.0,0.00025,7]
[341181995,1730557833732,-151.0,0.00025,7]
[341181996,1730557833741,-151.0,0.00025,7]
[341181997,1730557833751,-1038.33385341,0.00025,2]
[341181998,1730557833761,-3884.51756265,0.00025,2]
[341181999,1730557833775,-350.32921342,0.00025,2]
[341182000,1730557833787,-430.10000005,0.00025,2]
[341182019,1730557838186,-500.0,0.00023576,2]
[341182020,1730557838197,-169.19392819,0.00023576,2]
[341182021,1730557838209,-330.80607181,0.00023576,2]
[341182022,1730557838219,-341.77768612,0.00023576,2]
[341182023,1730557838228,-230.7277543,0.00023576,2]
[341182024,1730557838241,-269.2722457,0.00023576,2]
[341182025,1730557838251,-500.0,0.00023576,2]
[341182026,1730557838261,-500.0,0.00023576,2]
[341182027,1730557838270,-493.30274262,0.00023576,2]
[341182028,1730557838280,-500.0,0.00024658,2]
[341182029,1730557838289,-500.0,0.00024658,2]
[341182030,1730557838300,-500.0,0.00024658,2]
[341182031,1730557838310,-500.0,0.00024658,2]
[341182032,1730557838322,-500.0,0.00024658,2]
[341182033,1730557838332,-500.0,0.00024658,2]
[341182034,1730557838341,-500.0,0.00024658,2]
[341182035,1730557838353,-500.0,0.00024658,2]
[341182036,1730557838364,-500.0,0.00024658,2]
[341182037,1730557838374,-500.0,0.00024658,2]
[341182038,1730557838385,-500.0,0.00024658,2]
[341182039,1730557838398,-500.0,0.00024658,2]
[341182040,1730557838407,-500.0,0.00024658,2]
[341182041,1730557838417,-500.0,0.00024658,2]
[341182042,1730557838426,-500.0,0.00024658,2]
[341182043,1730557838436,-500.0,0.00024658,2]
[341182044,1730557838445,-200.0,0.00024658,2]
[341182045,1730557838454,-500.0,0.00024658,2]
[341182046,1730557838464,-500.0,0.00024658,2]
[341182047,1730557838473,-500.0,0.00024658,2]
[341182048,1730557838483,-500.0,0.00024658,2]
[341182049,1730557838492,-500.0,0.00024658,2]
[341182050,1730557838502,-500.0,0.00024658,2]
[341182051,1730557838511,-500.0,0.00024658,2]
[341182052,1730557838522,-27414.56358746,0.00025,2]
[341182053,1730557838539,-75360.34839818,0.00025,2]
[341182060,1730557840182,-49138.97427574,0.00025,2]
[341182061,1730557840196,-2474.90753754,0.00025,2]
[341182062,1730557840208,-1169.86144554,0.00025,2]
[341182081,1730557843147,-304.03765007,0.00025,2]
[341182082,1730557843161,-92519.98389334,0.00025,2]
[341182107,1730557846013,-11412.51119754,0.00025,2]
[341182116,1730557846094,-458324.05516564,0.00025,2]
[341182118,1730557846105,-56830.89756846,0.00025,2]
[341182120,1730557846115,-165.16701451,0.00025,2]
[341182122,1730557846125,-203.02762066,0.00025,2]
[341182124,1730557846136,-508.90891178,0.00025,2]
[341182126,1730557846145,-346.00340192,0.00025,2]
[341182128,1730557846156,-826.14609149,0.00025,2]
[341182130,1730557846166,-428.34,0.00025,2]
[341182132,1730557846175,-358.926918,0.00025,7]
[341182134,1730557846185,-358.926918,0.00025,7]
[341182136,1730557846194,-152.907284,0.00025,7]
[341182138,1730557846204,-358.926918,0.00025,7]
[341182141,1730557846214,-358.926918,0.00025,7]
[341182143,1730557846224,-358.926918,0.00025,7]
[341182145,1730557846235,-358.926918,0.00025,7]
[341182147,1730557846245,-358.926918,0.00025,7]
[341182149,1730557846255,-358.926918,0.00025,7]
[341182151,1730557846264,-190.894692,0.00025,7]
[341182153,1730557846273,-151.0,0.00025,7]
[341182155,1730557846283,-151.0,0.00025,7]
[341182157,1730557846292,-151.0,0.00025,7]
[341182159,1730557846302,-151.0,0.00025,7]
[341182161,1730557846314,-151.0,0.00025,7]
[341182163,1730557846324,-189.440608,0.00025,7]
[341182165,1730557846334,-151.0,0.00025,7]
[341182167,1730557846344,-151.0,0.00025,7]
[341182169,1730557846354,-160.538414,0.00025,7]
[341182171,1730557846365,-151.0,0.00025,3]
[341182173,1730557846374,-151.0,0.00025,3]
[341182175,1730557846384,-151.0,0.00025,3]
[341182177,1730557846395,-151.0,0.00025,3]
[341182179,1730557846406,-151.0,0.00025,3]
[341182181,1730557846415,-151.0,0.00025,3]
[341182183,1730557846424,-151.0,0.00025,3]
[341182185,1730557846433,-151.0,0.00025,3]
[341182187,1730557846443,-154.051806,0.00025,7]
[341182189,1730557846452,-151.0,0.00025,7]
[341182191,1730557846462,-151.0,0.00025,7]
[341182193,1730557846471,-151.0,0.00025,7]
[341182195,1730557846480,-151.0,0.00025,7]
[341182197,1730557846489,-151.0,0.00025,7]
[341182199,1730557846498,-151.0,0.00025,7]
[341182201,1730557846507,-151.0,0.00025,7]
[341182203,1730557846516,-198.983019,0.00025,7]
[341182205,1730557846525,-151.0,0.00025,7]
[341182207,1730557846535,-151.0,0.00025,7]
[341182208,1730557846544,-587.0,0.00025047,2]
[341182209,1730557846554,-500.0,0.00025073,2]
[341182210,1730557846563,-500.0,0.00025073,2]
[341182211,1730557846572,-620.8042278,0.00025073,2]
[341182212,1730557846581,-306.4851155,0.00025073,2]
[341182213,1730557846591,-500.0,0.00025073,2]
[341182214,1730557846600,-500.0,0.00025073,2]
[341182215,1730557846609,-142679.12498898,0.0002509,2]
[341182216,1730557846618,-153.663693,0.0002509,7]
[341182217,1730557846627,-151.0,0.0002509,7]
[341182218,1730557846636,-157.812707,0.0002509,7]
[341182219,1730557846646,-216.146003,0.0002509,7]
[341182220,1730557846656,-216.146003,0.0002509,7]
[341182221,1730557846666,-151.0,0.0002509,7]
[341182223,1730557846675,-249.823996,0.0002509,7]
[341182225,1730557846684,-151.0,0.0002509,7]
[341182227,1730557846694,-179.337026,0.0002509,7]
[341182230,1730557846704,-151.0,0.0002509,7]
[341182231,1730557846714,-951.691147,0.0002509,7]
[341182234,1730557846723,-741.362036,0.0002509,7]
[341182236,1730557846733,-951.691147,0.0002509,7]
[341182238,1730557846742,-741.362036,0.0002509,7]
[341182240,1730557846751,-1815.482029,0.0002509,7]
[341182241,1730557846760,-151.0,0.0002509,7]
[341182243,1730557846769,-1815.482029,0.0002509,7]
[341182245,1730557846778,-189.056353,0.0002509,7]
[341182247,1730557846787,-189.056353,0.0002509,7]
[341182250,1730557846798,-151.0,0.0002509,7]
[341182252,1730557846807,-158.171027,0.0002509,7]
[341182254,1730557846816,-151.0,0.0002509,7]
[341182256,1730557846825,-151.0,0.0002509,7]
[341182258,1730557846835,-151.0,0.0002509,7]
[341182260,1730557846845,-151.0,0.0002509,7]
[341182262,1730557846854,-35321.85646651,0.0002509,2]
[341182264,1730557846863,-358.926918,0.0002509,7]
[341182266,1730557846872,-358.926918,0.0002509,7]
[341182268,1730557846881,-358.926918,0.0002509,7]
[341182270,1730557846891,-358.926918,0.0002509,7]
[341182272,1730557846900,-151.0,0.0002509,7]
[341182274,1730557846910,-151.0,0.0002509,7]
[341182276,1730557846919,-151.0,0.0002509,3]
[341182278,1730557846928,-151.0,0.0002509,3]
[341182280,1730557846938,-151.0,0.0002509,3]
[341182281,1730557846952,-151.0,0.0002509,3]
[341182283,1730557846963,-151.0,0.0002509,7]
[341182285,1730557846972,-151.0,0.0002509,7]
[341182287,1730557846981,-587.0,0.00025622,2]
[341182289,1730557846991,-2920.0,0.00025913,2]
[341182291,1730557847000,-216.146003,0.00025976,7]
[341182293,1730557847009,-216.146003,0.00025976,7]
[341182295,1730557847019,-527.27883075,0.00026,2]
[341182296,1730557847028,-162.904945,0.00026342,7]
[341182297,1730557847037,-249.823996,0.00026342,7]
[341182298,1730557847046,-151.0,0.00026342,7]
[341182299,1730557847056,-1815.482029,0.00026342,7]
[341182300,1730557847065,-1815.482029,0.00026342,7]
[341182301,1730557847074,-1000.0,0.00026342,2]
[341182302,1730557847084,-785.8750617,0.00026395,2]
[341182303,1730557847093,-150.112233,0.000264,16]
[341182304,1730557847103,-151.0,0.00026442,7]
[341182305,1730557847112,-151.0,0.00026442,7]
[341182306,1730557847122,-951.691147,0.00026442,7]
[341182307,1730557847132,-741.362036,0.00026442,7]
[341182308,1730557847143,-951.691147,0.00026442,7]
[341182309,1730557847157,-741.362036,0.00026442,7]
[341182310,1730557847166,-151.0,0.00026442,7]
[341182311,1730557847176,-189.056353,0.00026442,7]
[341182312,1730557847185,-189.056353,0.00026442,7]
[341182313,1730557847195,-151.0,0.00026442,7]
[341182314,1730557847204,-151.0,0.00026442,7]
[341182315,1730557847214,-151.0,0.00026442,7]
[341182316,1730557847224,-151.0,0.00026442,7]
[341182317,1730557847234,-1000.0,0.00026442,2]
[341182318,1730557847244,-1964.28,0.000265,14]
[341182319,1730557847339,-500.0,0.000266,2]
[341182320,1730557847349,-500.0,0.000266,2]
[341182321,1730557847363,-500.44842301,0.000266,2]
[341182322,1730557847374,-545.4607315,0.000266,2]
[341182323,1730557847384,-600.0,0.00026849,2]
[341182324,1730557847393,-183.693,0.00026876,14]
[341182325,1730557847402,-150.112233,0.000269,15]
[341182326,1730557847420,-151.0,0.00026921,7]
[341182327,1730557847429,-358.926918,0.00026921,7]
[341182328,1730557847439,-358.926918,0.00026921,7]
[341182329,1730557847448,-151.0,0.00026921,7]
[341182330,1730557847458,-151.0,0.00026921,3]
[341182331,1730557847469,-151.0,0.00026921,3]
[341182332,1730557847480,-151.0,0.00026921,7]
[341182333,1730557847489,-251.69276,0.00026921,2]
[341182334,1730557847499,-163.0,0.00027,2]
[341182335,1730557847508,-165.0,0.00027,2]
[341182336,1730557847517,-823.0,0.00027241,2]
[341182337,1730557847526,-150.112233,0.000274,15]
[341182338,1730557847536,-481.04375308,0.00027715,2]
[341182339,1730557847547,-158.895813,0.00027715,7]
[341182340,1730557847556,-216.146003,0.00027715,7]
[341182341,1730557847568,-216.146003,0.00027715,7]
[341182342,1730557847577,-216.146003,0.00027715,7]
[341182343,1730557847588,-216.146003,0.00027715,7]
[341182344,1730557847598,-249.823996,0.00027715,7]
[341182345,1730557847607,-249.823996,0.00027715,7]
[341182346,1730557847618,-1000.0,0.00027715,28]
[341182347,1730557847629,-1000.0,0.00027715,28]
[341182348,1730557847638,-151.0,0.00027715,7]
[341182349,1730557847648,-1000.0,0.00027715,28]
[341182350,1730557847659,-151.0,0.00027715,7]
[341182351,1730557847670,-1000.0,0.00027715,28]
[341182352,1730557847680,-1000.0,0.00027715,28]
[341182353,1730557847690,-1000.0,0.00027715,28]
[341182354,1730557847701,-1000.0,0.00027715,28]
[341182355,1730557847711,-1000.0,0.00027715,28]
[341182356,1730557847720,-1000.0,0.00027715,28]
[341182357,1730557847730,-1000.0,0.00027715,28]
[341182358,1730557847739,-1000.0,0.00027715,28]
[341182359,1730557847749,-1000.0,0.00027715,28]
[341182360,1730557847760,-1000.0,0.00027715,28]
[341182361,1730557847770,-1000.0,0.00027715,28]
[341182362,1730557847782,-1000.0,0.00027715,28]
[341182363,1730557847792,-1000.0,0.00027715,28]
[341182364,1730557847802,-1000.0,0.00027715,28]
[341182365,1730557847812,-1000.0,0.00027715,28]
[341182366,1730557847821,-1000.0,0.00027715,28]
[341182367,1730557847831,-1000.0,0.00027715,28]
[341182368,1730557847840,-1000.0,0.00027715,28]
[341182369,1730557847850,-1000.0,0.00027715,28]
[341182370,1730557847859,-1000.0,0.00027715,28]
[341182371,1730557847869,-1000.0,0.00027715,28]
[341182372,1730557847878,-1000.0,0.00027715,28]
[341182373,1730557847888,-1000.0,0.00027715,28]
[341182374,1730557847897,-1000.0,0.00027715,28]
[341182375,1730557847910,-1000.0,0.00027715,28]
[341182376,1730557847921,-1098.76545327,0.00027715,28]
[341182377,1730557847931,-263.329127,0.00027715,7]
[341182378,1730557847942,-951.691147,0.00027715,7]
[341182379,1730557847953,-741.362036,0.00027715,7]
[341182380,1730557847962,-951.691147,0.00027715,7]
[341182381,1730557847972,-741.362036,0.00027715,7]
[341182382,1730557847982,-1815.482029,0.00027715,7]
[341182383,1730557847992,-1815.482029,0.00027715,7]
[341182384,1730557848002,-151.0,0.00027715,7]
[341182385,1730557848011,-1815.482029,0.00027715,7]
[341182386,1730557848020,-1815.482029,0.00027715,7]
[341182387,1730557848030,-189.056353,0.00027715,7]
[341182388,1730557848040,-189.056353,0.00027715,7]
[341182389,1730557848050,-151.0,0.00027715,7]
[341182390,1730557848060,-151.0,0.00027715,7]
[341182391,1730557848069,-151.0,0.00027715,7]
[341182392,1730557848079,-151.0,0.00027715,7]
[341182393,1730557848089,-151.0,0.00027715,7]
[341182394,1730557848100,-151.0,0.00027715,7]
[341182395,1730557848110,-151.0,0.00027715,7]
[341182396,1730557848120,-358.926918,0.00027715,7]
[341182397,1730557848130,-358.926918,0.00027715,7]
[341182398,1730557848140,-358.926918,0.00027715,7]
[341182399,1730557848150,-358.926918,0.00027715,7]
[341182400,1730557848162,-151.0,0.00027715,7]
[341182401,1730557848171,-180.298918,0.00027715,7]
[341182402,1730557848182,-151.0,0.00027715,3]
[341182403,1730557848192,-151.0,0.00027715,3]
[341182404,1730557848202,-151.0,0.00027715,3]
[341182405,1730557848212,-211.396272,0.00027715,3]
[341182406,1730557848222,-151.0,0.00027715,7]
[341182407,1730557848232,-151.0,0.00027715,7]
[341182408,1730557848243,-465.37141723,0.0002785,2]
[341182409,1730557848252,-150.112233,0.000279,16]
[341182410,1730557848262,-1000.0,0.0002797,5]
[341182411,1730557848283,-3012.14460162,0.00028,12]
[341182412,1730557848293,-153.413988,0.00028,7]
[341182413,1730557848303,-823.0,0.00028185,2]
[341182414,1730557848314,-631.46172926,0.00028293,5]
[341182415,1730557848328,-151.0,0.00028293,7]
[341182416,1730557848338,-150.112233,0.000284,15]
[341182417,1730557848348,-951.691147,0.00028482,7]
[341182418,1730557848360,-741.362036,0.00028482,7]
[341182419,1730557848370,-951.691147,0.00028482,7]
[341182420,1730557848380,-741.362036,0.00028482,7]
[341182421,1730557848391,-189.056353,0.00028482,7]
[341182422,1730557848402,-189.056353,0.00028482,7]
[341182423,1730557848413,-249.823996,0.000286,7]
[341182424,1730557848425,-151.0,0.000286,7]
[341182425,1730557848435,-1815.482029,0.000286,7]
[341182426,1730557848445,-1815.482029,0.000286,7]
[341182427,1730557848455,-290.889594,0.000286,7]
[341182428,1730557848466,-151.0,0.000286,7]
[341182429,1730557848476,-163.0,0.00028767,2]
[341182430,1730557848488,-165.0,0.00028767,2]
[341182431,1730557848498,-1500.0,0.00028847,5]
[341182432,1730557848508,-216.146003,0.0002888,7]
[341182433,1730557848518,-216.146003,0.0002888,7]
[341182434,1730557848529,-358.926918,0.0002888,7]
[341182435,1730557848539,-358.92692,0.0002888,7]
[341182436,1730557848549,-151.0,0.0002888,3]
[341182437,1730557848560,-151.0,0.0002888,7]
[341182438,1730557848570,-3432.43328603,0.0002888,30]
[341182439,1730557848580,-2609.42,0.000289,14]
[341182440,1730557848590,-18423.45,0.000289,14]
[341182441,1730557848600,-7206.86,0.000289,30]
[341182442,1730557848610,-10199.42,0.000289,30]
[341182443,1730557848619,-216.146003,0.000289,7]
[341182444,1730557848629,-216.146003,0.000289,7]
[341182445,1730557848639,-216.146003,0.000289,7]
[341182446,1730557848649,-216.146008,0.000289,7]
[341182447,1730557848661,-150.112233,0.000289,11]
[341182448,1730557848670,-249.823996,0.000289,7]
[341182449,1730557848681,-249.823996,0.000289,7]
[341182450,1730557848691,-249.823996,0.000289,7]
[341182451,1730557848702,-151.0,0.000289,7]
[341182452,1730557848713,-151.0,0.000289,7]
[341182453,1730557848723,-951.691147,0.000289,7]
[341182454,1730557848733,-951.691147,0.000289,7]
[341182455,1730557848743,-741.362036,0.000289,7]
[341182456,1730557848754,-951.691147,0.000289,7]
[341182457,1730557848764,-741.362036,0.000289,7]
[341182458,1730557848774,-951.691147,0.000289,7]
[341182459,1730557848784,-741.362036,0.000289,7]
[341182460,1730557848794,-741.362036,0.000289,7]
[341182461,1730557848803,-1815.482029,0.000289,7]
[341182462,1730557848813,-1815.482029,0.000289,7]
[341182463,1730557848823,-196.99619,0.000289,7]
[341182464,1730557848833,-1815.482029,0.000289,7]
[341182465,1730557848843,-1815.482029,0.000289,7]
[341182466,1730557848854,-189.056353,0.000289,7]
[341182467,1730557848864,-189.056353,0.000289,7]
[341182468,1730557848873,-189.056353,0.000289,7]
[341182469,1730557848886,-189.056353,0.000289,7]
[341182470,1730557848896,-151.0,0.000289,7]
[341182471,1730557848907,-151.0,0.000289,7]
[341182472,1730557848917,-1500.0,0.00028947,5]
[341182473,1730557848928,-465.80218765,0.00029101,2]
[341182474,1730557848938,-465.01857086,0.00029242,2]
[341182475,1730557848949,-150.112234,0.000294,14]
[341182476,1730557848960,-150.112233,0.000294,14]
[341182477,1730557848971,-1964.28,0.000295,14]
[341182478,1730557848982,-246.2142,0.00029751,2]
[341182479,1730557848992,-7875.15574308,0.00029772,3]